[Event "Elite Hotels Open 2023"]
[Site "Elite Stadshotellet, Kungsgatan 6, Vaxjo, Sweden"]
[Date "2023.02.10"]
[Round "1.13"]
[White "Karlsson, Stefan"]
[Black "Bellon Lopez, Juan Manuel"]
[Result "0-1"]
[TimeControl "15 minutes + 5 seconds per move from move one (Round 1 - 4) / 90 minutes + 30 seconds per move from move one (Round 5 - 8)"]
[BlackTitle "GM"]
[WhiteFideId "1771183"]
[BlackFideId "2200031"]
[WhiteElo "1778"]
[BlackElo "2303"]

1. e4 {[%clk 00:15:07]} {[%emt 00:00:04]} c5 {[%clk 00:15:14]} {[%emt
00:00:01]} 2. Nf3 {[%clk 00:15:10]} {[%emt 00:00:01]} e6 {[%clk 00:15:18]}
{[%emt 00:00:02]} 3. c3 {[%clk 00:15:14]} {[%emt 00:00:01]} Nf6 {[%clk
00:15:20]} {[%emt 00:00:02]} 4. e5 {[%clk 00:15:18]} {[%emt 00:00:01]} Nd5
{[%clk 00:15:24]} {[%emt 00:00:01]} 5. Bc4 {[%clk 00:15:23]} {[%emt 00:00:02]}
d6 {[%clk 00:15:28]} {[%emt 00:00:01]} 6. d4 {[%clk 00:15:25]} {[%emt
00:00:02]} dxe5 {[%clk 00:15:22]} {[%emt 00:00:11]} 7. dxe5 {[%clk 00:15:26]}
{[%emt 00:00:03]} Be7 {[%clk 00:15:21]} {[%emt 00:00:07]} 8. O-O {[%clk
00:15:24]} {[%emt 00:00:07]} O-O {[%clk 00:15:22]} {[%emt 00:00:04]} 9. Nbd2
{[%clk 00:15:12]} {[%emt 00:00:16]} Nb6 {[%clk 00:15:15]} {[%emt 00:00:13]} 10.
Bb3 {[%clk 00:15:10]} {[%emt 00:00:07]} Bd7 {[%clk 00:14:34]} {[%emt 00:00:46]}
11. Qe2 {[%clk 00:14:32]} {[%emt 00:00:42]} Bc6 {[%clk 00:13:36]} {[%emt
00:01:04]} 12. Rd1 {[%clk 00:14:08]} {[%emt 00:00:28]} Qc7 {[%clk 00:13:16]}
{[%emt 00:00:26]} 13. Ne4 {[%clk 00:13:50]} {[%emt 00:00:23]} N8d7 {[%clk
00:12:59]} {[%emt 00:00:23]} 14. Bf4 {[%clk 00:13:03]} {[%emt 00:00:50]} Rad8
{[%clk 00:11:58]} {[%emt 00:01:07]} 15. Nd6 {[%clk 00:11:18]} {[%emt 00:01:50]}
Nc8 {[%clk 00:08:45]} {[%emt 00:03:17]} 16. Ne4 {[%clk 00:08:41]} {[%emt
00:02:42]} Ndb6 {[%clk 00:07:52]} {[%emt 00:00:59]} 17. c4 {[%clk 00:07:03]}
{[%emt 00:01:43]} Rxd1+ {[%clk 00:07:36]} {[%emt 00:00:20]} 18. Rxd1 {[%clk
00:07:06]} {[%emt 00:00:02]} Rd8 {[%clk 00:07:31]} {[%emt 00:00:11]} 19. Nfg5
{[%clk 00:05:36]} {[%emt 00:01:34]} h6 {[%clk 00:05:56]} {[%emt 00:01:40]} 20.
Nf3 {[%clk 00:04:22]} {[%emt 00:01:19]} Rxd1+ 21. Bxd1 {[%clk 00:04:25]} Nd7
{[%clk 00:04:32]} {[%emt 00:01:17]} 22. Bc2 {[%clk 00:04:00]} {[%emt 00:00:29]}
Nf8 {[%clk 00:04:36]} {[%emt 00:00:01]} 23. Ng3 {[%clk 00:03:12]} {[%emt
00:00:54]} Qa5 {[%clk 00:04:07]} {[%emt 00:00:33]} 24. b3 {[%clk 00:02:58]}
{[%emt 00:00:19]} Qc3 {[%clk 00:03:42]} {[%emt 00:00:29]} 25. Ne4 {[%clk
00:02:42]} {[%emt 00:00:23]} Qa1+ {[%clk 00:03:34]} {[%emt 00:00:12]} 26. Ne1
{[%clk 00:02:40]} {[%emt 00:00:08]} Ng6 {[%clk 00:03:10]} {[%emt 00:00:29]} 27.
Bg3 {[%clk 00:02:42]} {[%emt 00:00:03]} Qd4 {[%clk 00:03:08]} {[%emt 00:00:06]}
28. Nf3 {[%clk 00:02:37]} {[%emt 00:00:11]} Qa1+ {[%clk 00:03:04]} {[%emt
00:00:08]} 29. Ne1 {[%emt 00:00:04]} Qxa2 {[%clk 00:02:47]} {[%emt 00:00:19]}
30. Qd3 {[%clk 00:02:13]} {[%emt 00:00:33]} Qa1 {[%clk 00:02:35]} {[%emt
00:00:16]} 31. f4 {[%clk 00:02:00]} {[%emt 00:00:19]} Nxf4 {[%clk 00:01:47]}
{[%emt 00:00:54]} 32. Nf6+ {[%clk 00:01:48]} {[%emt 00:00:17]} Kf8 {[%clk
00:01:49]} {[%emt 00:00:03]} 33. Nd7+ {[%clk 00:01:41]} {[%emt 00:00:12]} Ke8
{[%clk 00:01:42]} {[%emt 00:00:11]} 34. Qd2 {[%clk 00:01:17]} {[%emt 00:00:30]}
Bxd7 {[%clk 00:01:28]} {[%emt 00:00:19]} 35. Bxf4 {[%clk 00:01:19]} {[%emt
00:00:02]} Bg5 {[%clk 00:01:24]} {[%emt 00:00:09]} 36. Bxg5 {[%clk 00:01:19]}
{[%emt 00:00:05]} hxg5 {[%clk 00:01:28]} {[%emt 00:00:01]} 37. Kf2 {[%clk
00:01:14]} {[%emt 00:00:10]} Qxe5 {[%clk 00:01:31]} {[%emt 00:00:03]} 38. Nf3
{[%clk 00:01:17]} {[%emt 00:00:01]} Qf4 {[%clk 00:01:26]} {[%emt 00:00:09]} 39.
Qe2 {[%clk 00:01:15]} {[%emt 00:00:09]} Bc6 {[%clk 00:01:22]} {[%emt 00:00:08]}
40. g3 {[%clk 00:01:13]} {[%emt 00:00:07]} Qxf3+ {[%clk 00:01:25]} {[%emt
00:00:02]} 41. Qxf3 {[%clk 00:01:17]} Bxf3 {[%clk 00:01:29]} 42. Kxf3 {[%clk
00:01:21]} {[%emt 00:00:01]} Nd6 {[%clk 00:01:26]} {[%emt 00:00:09]} 43. Kg4
{[%clk 00:01:12]} {[%emt 00:00:13]} f6 {[%clk 00:01:28]} {[%emt 00:00:03]} 44.
Kh5 {[%clk 00:01:08]} {[%emt 00:00:08]} Kf7 {[%clk 00:01:29]} {[%emt 00:00:05]}
45. Bg6+ {[%clk 00:01:10]} {[%emt 00:00:03]} Kg8 {[%clk 00:01:33]} {[%emt
00:00:01]} 46. Bd3 {[%clk 00:01:10]} {[%emt 00:00:04]} Nf5 {[%clk 00:01:29]}
{[%emt 00:00:10]} 47. Bc2 {[%clk 00:00:56]} {[%emt 00:00:18]} Nd4 {[%clk
00:01:30]} {[%emt 00:00:05]} 48. Bd1 {[%clk 00:01:01]} Kf7 {[%clk 00:01:32]}
{[%emt 00:00:02]} 49. Kg4 {[%clk 00:01:04]} {[%emt 00:00:02]} Kg6 {[%clk
00:01:35]} {[%emt 00:00:03]} 50. Kh3 {[%clk 00:01:05]} {[%emt 00:00:04]} f5
{[%clk 00:01:37]} {[%emt 00:00:03]} 51. Kg2 {[%clk 00:01:07]} {[%emt 00:00:03]}
g4 {[%clk 00:01:39]} {[%emt 00:00:03]} 52. Kf2 {[%clk 00:01:09]} {[%emt
00:00:03]} Kf6 {[%clk 00:01:43]} {[%emt 00:00:01]} 53. Ke3 {[%clk 00:01:12]}
{[%emt 00:00:02]} Ke5 {[%clk 00:01:47]} 0-1

[Event "Elite Hotels Open 2023"]
[Site "Elite Stadshotellet, Kungsgatan 6, Vaxjo, Sweden"]
[Date "2023.02.10"]
[Round "1.14"]
[White "Falkevall, Axel"]
[Black "Garner, Marten"]
[Result "1-0"]
[TimeControl "15 minutes + 5 seconds per move from move one (Round 1 - 4) / 90 minutes + 30 seconds per move from move one (Round 5 - 8)"]
[WhiteTitle "FM"]
[WhiteFideId "1735560"]
[BlackFideId "1712136"]
[WhiteElo "2299"]
[BlackElo "1777"]

1. d4 {[%clk 00:15:07]} {[%emt 00:00:02]} d5 {[%clk 00:15:08]} {[%emt
00:00:03]} 2. c4 {[%clk 00:15:09]} {[%emt 00:00:02]} e6 {[%clk 00:15:12]}
{[%emt 00:00:01]} 3. Nf3 {[%clk 00:14:57]} {[%emt 00:00:18]} Nf6 {[%clk
00:15:15]} 4. g3 {[%clk 00:15:01]} {[%emt 00:00:02]} c6 {[%clk 00:15:18]}
{[%emt 00:00:02]} 5. Bg2 {[%clk 00:14:52]} {[%emt 00:00:13]} dxc4 {[%clk
00:15:19]} {[%emt 00:00:04]} 6. O-O {[%clk 00:14:50]} {[%emt 00:00:07]} Nbd7
{[%clk 00:15:17]} {[%emt 00:00:07]} 7. a4 {[%clk 00:13:50]} {[%emt 00:01:06]}
Bd6 {[%clk 00:14:41]} {[%emt 00:00:38]} 8. Nbd2 {[%clk 00:13:33]} {[%emt
00:00:24]} O-O {[%clk 00:14:25]} {[%emt 00:00:20]} 9. Nxc4 {[%clk 00:13:01]}
{[%emt 00:00:38]} Bc7 {[%clk 00:14:16]} {[%emt 00:00:13]} 10. Qc2 {[%clk
00:12:58]} {[%emt 00:00:09]} Re8 {[%clk 00:13:43]} {[%emt 00:00:38]} 11. Rd1
{[%clk 00:12:49]} {[%emt 00:00:13]} Qe7 {[%clk 00:09:25]} {[%emt 00:04:23]} 12.
b3 {[%clk 00:12:41]} {[%emt 00:00:13]} b6 {[%clk 00:09:14]} {[%emt 00:00:16]}
13. Ba3 {[%clk 00:11:18]} {[%emt 00:01:29]} c5 {[%clk 00:07:52]} {[%emt
00:01:27]} 14. Ng5 {[%clk 00:06:53]} {[%emt 00:04:29]} Rb8 {[%clk 00:07:49]}
{[%emt 00:00:08]} 15. d5 {[%clk 00:06:27]} {[%emt 00:00:31]} h6 {[%clk
00:06:47]} {[%emt 00:01:07]} 16. d6 {[%clk 00:06:06]} {[%emt 00:00:27]} Bxd6
{[%clk 00:05:55]} {[%emt 00:00:57]} 17. Nxd6 {[%clk 00:05:59]} {[%emt
00:00:10]} hxg5 {[%clk 00:05:42]} {[%emt 00:00:19]} 18. Nxe8 {[%clk 00:06:02]}
{[%emt 00:00:03]} Qxe8 {[%clk 00:05:31]} {[%emt 00:00:17]} 19. Bb2 {[%clk
00:05:56]} {[%emt 00:00:11]} Ba6 {[%clk 00:05:05]} {[%emt 00:00:30]} 20. Qd2
{[%clk 00:05:41]} {[%emt 00:00:20]} e5 {[%clk 00:03:21]} {[%emt 00:01:49]} 21.
Qxg5 {[%clk 00:05:23]} {[%emt 00:00:22]} Qe6 {[%clk 00:02:24]} {[%emt
00:01:02]} 22. Qe3 {[%clk 00:04:37]} {[%emt 00:00:51]} Re8 {[%clk 00:01:26]}
{[%emt 00:01:03]} 23. h3 {[%clk 00:03:57]} {[%emt 00:00:45]} e4 {[%clk
00:01:27]} {[%emt 00:00:04]} 24. a5 {[%clk 00:03:35]} {[%emt 00:00:27]} Nd5
{[%clk 00:01:19]} {[%emt 00:00:14]} 25. Qg5 {[%clk 00:03:21]} {[%emt 00:00:18]}
N7f6 {[%clk 00:00:54]} {[%emt 00:00:31]} 26. axb6 {[%clk 00:02:58]} {[%emt
00:00:28]} Bxe2 {[%clk 00:00:55]} {[%emt 00:00:04]} 27. Re1 {[%clk 00:02:31]}
{[%emt 00:00:32]} Bd3 {[%clk 00:00:55]} {[%emt 00:00:05]} 28. bxa7 {[%clk
00:02:29]} {[%emt 00:00:07]} Ra8 {[%clk 00:00:59]} 29. Rad1 {[%clk 00:01:59]}
{[%emt 00:00:35]} Qb6 {[%clk 00:00:59]} {[%emt 00:00:05]} 30. Rxd3 {[%clk
00:01:44]} {[%emt 00:00:20]} exd3 {[%clk 00:01:02]} 31. Bxd5 {[%clk 00:01:47]}
{[%emt 00:00:02]} Rxa7 {[%clk 00:01:05]} {[%emt 00:00:03]} 32. Bxf6 {[%clk
00:01:31]} {[%emt 00:00:21]} Qxf6 {[%clk 00:01:08]} {[%emt 00:00:01]} 33. Re8+
{[%clk 00:01:32]} {[%emt 00:00:04]} Kh7 {[%clk 00:01:12]} {[%emt 00:00:02]} 34.
Be4+ {[%clk 00:01:32]} {[%emt 00:00:04]} 1-0

[Event "Elite Hotels Open 2023"]
[Site "Elite Stadshotellet, Kungsgatan 6, Vaxjo, Sweden"]
[Date "2023.02.10"]
[Round "1.15"]
[White "Ottosson, Bjorn"]
[Black "Ernst, Thomas"]
[Result "0-1"]
[TimeControl "15 minutes + 5 seconds per move from move one (Round 1 - 4) / 90 minutes + 30 seconds per move from move one (Round 5 - 8)"]
[BlackTitle "GM"]
[WhiteFideId "1721402"]
[BlackFideId "1700065"]
[WhiteElo "1773"]
[BlackElo "2286"]

1. c4 {[%clk 00:15:08]} {[%emt 00:00:01]} c5 {[%clk 00:15:09]} {[%emt
00:00:02]} 2. Nc3 {[%clk 00:15:10]} {[%emt 00:00:02]} Nf6 {[%clk 00:15:11]}
{[%emt 00:00:03]} 3. Nf3 {[%clk 00:15:11]} {[%emt 00:00:04]} d5 {[%clk
00:15:14]} {[%emt 00:00:02]} 4. cxd5 {[%clk 00:15:10]} {[%emt 00:00:06]} Nxd5
{[%clk 00:15:17]} {[%emt 00:00:02]} 5. e4 {[%clk 00:15:07]} {[%emt 00:00:07]}
Nb4 {[%clk 00:15:18]} {[%emt 00:00:05]} 6. d3 {[%clk 00:15:02]} {[%emt
00:00:09]} Bg4 {[%clk 00:14:50]} {[%emt 00:00:32]} 7. Be2 {[%clk 00:14:43]}
{[%emt 00:00:25]} Bxf3 {[%clk 00:14:43]} {[%emt 00:00:13]} 8. gxf3 {[%clk
00:14:46]} {[%emt 00:00:02]} e6 {[%clk 00:14:40]} {[%emt 00:00:07]} 9. Bf4
{[%clk 00:14:20]} {[%emt 00:00:31]} Bd6 {[%clk 00:14:25]} {[%emt 00:00:21]} 10.
Bg3 {[%clk 00:13:19]} {[%emt 00:01:05]} N4c6 {[%clk 00:14:10]} {[%emt
00:00:20]} 11. f4 {[%clk 00:12:54]} {[%emt 00:00:30]} Nd4 {[%clk 00:14:04]}
{[%emt 00:00:11]} 12. e5 {[%clk 00:12:24]} {[%emt 00:00:35]} Be7 {[%clk
00:14:05]} {[%emt 00:00:05]} 13. Bf3 {[%clk 00:12:21]} {[%emt 00:00:07]} Nxf3+
{[%clk 00:13:39]} {[%emt 00:00:32]} 14. Qxf3 {[%clk 00:12:23]} {[%emt
00:00:02]} Nc6 {[%clk 00:13:42]} {[%emt 00:00:03]} 15. f5 {[%clk 00:11:41]}
{[%emt 00:00:47]} Nd4 {[%clk 00:13:35]} {[%emt 00:00:12]} 16. Qxb7 {[%clk
00:11:28]} {[%emt 00:00:18]} Nc2+ {[%clk 00:13:35]} {[%emt 00:00:06]} 17. Kd2
{[%clk 00:11:32]} {[%emt 00:00:01]} Nxa1 {[%clk 00:13:37]} {[%emt 00:00:02]} 18.
Qc6+ {[%clk 00:11:28]} {[%emt 00:00:09]} Kf8 {[%clk 00:13:39]} {[%emt
00:00:03]} 19. Rxa1 {[%clk 00:11:31]} {[%emt 00:00:02]} exf5 {[%clk 00:13:15]}
{[%emt 00:00:29]} 20. Kc2 {[%clk 00:11:30]} {[%emt 00:00:05]} g6 {[%clk
00:13:00]} {[%emt 00:00:20]} 21. e6 {[%clk 00:11:08]} {[%emt 00:00:27]} Rc8
{[%clk 00:12:31]} {[%emt 00:00:35]} 22. Qf3 {[%clk 00:10:43]} {[%emt 00:00:30]}
fxe6 {[%clk 00:12:24]} {[%emt 00:00:11]} 23. Re1 {[%clk 00:10:46]} {[%emt
00:00:02]} Kf7 {[%clk 00:11:54]} {[%emt 00:00:35]} 24. Kb1 {[%clk 00:09:44]}
{[%emt 00:01:07]} Re8 {[%clk 00:11:44]} {[%emt 00:00:15]} 25. Ne4 {[%clk
00:09:29]} {[%emt 00:00:20]} Kg8 {[%clk 00:11:23]} {[%emt 00:00:26]} 26. Nc3
{[%clk 00:09:25]} {[%emt 00:00:10]} Bf6 {[%clk 00:11:20]} {[%emt 00:00:07]} 27.
Be5 {[%clk 00:09:09]} {[%emt 00:00:21]} Bxe5 {[%clk 00:11:15]} {[%emt
00:00:11]} 28. Rxe5 {[%clk 00:09:12]} {[%emt 00:00:01]} Qd4 {[%clk 00:11:04]}
{[%emt 00:00:14]} 29. Qe2 {[%clk 00:08:51]} {[%emt 00:00:28]} c4 {[%clk
00:10:48]} {[%emt 00:00:21]} 30. dxc4 {[%clk 00:08:26]} {[%emt 00:00:31]} Qxc4
{[%clk 00:10:47]} {[%emt 00:00:06]} 31. Qe3 {[%clk 00:08:07]} {[%emt 00:00:23]}
Rc6 {[%clk 00:07:51]} {[%emt 00:03:00]} 32. a3 {[%clk 00:07:38]} {[%emt
00:00:35]} Rb8 {[%clk 00:07:35]} {[%emt 00:00:21]} 33. Ka1 {[%clk 00:06:48]}
{[%emt 00:00:56]} Rcb6 {[%clk 00:06:58]} {[%emt 00:00:42]} 34. Qe2 {[%clk
00:05:38]} {[%emt 00:01:16]} Qb3 {[%clk 00:06:20]} {[%emt 00:00:40]} 35. Nd1
{[%clk 00:04:27]} {[%emt 00:01:17]} Rc6 {[%clk 00:05:42]} {[%emt 00:00:41]} 36.
Qd2 {[%clk 00:04:02]} {[%emt 00:00:32]} Rbc8 {[%clk 00:05:18]} {[%emt
00:00:29]} 37. Nc3 {[%clk 00:03:54]} {[%emt 00:00:14]} Rxc3 {[%clk 00:05:09]}
{[%emt 00:00:14]} 38. bxc3 {[%clk 00:03:58]} {[%emt 00:00:02]} Qxa3+ {[%clk
00:05:10]} {[%emt 00:00:04]} 39. Kb1 {[%clk 00:03:52]} {[%emt 00:00:09]} Rb8+
{[%emt 00:00:37]} 0-1

[Event "Elite Hotels Open 2023"]
[Site "Elite Stadshotellet, Kungsgatan 6, Vaxjo, Sweden"]
[Date "2023.02.10"]
[Round "1.16"]
[White "Wagner, Stephan"]
[Black "Nyberg, Peter"]
[Result "1-0"]
[TimeControl "15 minutes + 5 seconds per move from move one (Round 1 - 4) / 90 minutes + 30 seconds per move from move one (Round 5 - 8)"]
[WhiteFideId "1613251"]
[BlackFideId "1771779"]
[WhiteElo "2264"]
[BlackElo "1771"]

1. c4 {[%clk 00:15:06]} {[%emt 00:00:03]} c6 {[%clk 00:14:59]} {[%emt
00:00:11]} 2. Nf3 {[%clk 00:15:04]} {[%emt 00:00:07]} d5 {[%emt 00:00:03]} 3.
e3 {[%clk 00:15:06]} {[%emt 00:00:01]} Nf6 {[%clk 00:14:44]} {[%emt 00:00:25]}
4. b3 {[%clk 00:15:04]} {[%emt 00:00:06]} g6 {[%clk 00:14:39]} {[%emt
00:00:10]} 5. Bb2 {[%clk 00:15:07]} {[%emt 00:00:02]} Bg7 {[%clk 00:14:42]}
{[%emt 00:00:03]} 6. Nc3 {[%clk 00:14:46]} {[%emt 00:00:26]} Bg4 {[%clk
00:14:12]} {[%emt 00:00:35]} 7. h3 {[%clk 00:14:41]} {[%emt 00:00:10]} Bxf3
{[%clk 00:14:15]} 8. Qxf3 {[%clk 00:14:44]} {[%emt 00:00:02]} O-O {[%clk
00:14:03]} {[%emt 00:00:17]} 9. d4 {[%clk 00:13:46]} {[%emt 00:01:03]} Qa5
{[%clk 00:13:22]} {[%emt 00:00:47]} 10. Bd3 {[%clk 00:13:02]} {[%emt 00:00:49]}
Nbd7 {[%clk 00:12:46]} {[%emt 00:00:41]} 11. O-O {[%clk 00:12:43]} {[%emt
00:00:22]} e5 {[%clk 00:12:29]} {[%emt 00:00:24]} 12. Qd1 {[%clk 00:11:30]}
{[%emt 00:01:18]} e4 {[%clk 00:11:50]} {[%emt 00:00:43]} 13. Be2 {[%clk
00:11:29]} {[%emt 00:00:05]} Rfe8 {[%clk 00:10:50]} {[%emt 00:01:06]} 14. a3
{[%clk 00:10:21]} {[%emt 00:01:14]} Nf8 {[%clk 00:09:29]} {[%emt 00:01:26]} 15.
b4 {[%clk 00:10:04]} {[%emt 00:00:21]} Qd8 {[%clk 00:09:18]} {[%emt 00:00:16]}
16. b5 {[%clk 00:10:05]} {[%emt 00:00:04]} Ne6 {[%clk 00:08:13]} {[%emt
00:01:11]} 17. Qa4 {[%clk 00:09:34]} {[%emt 00:00:36]} cxb5 {[%clk 00:07:39]}
{[%emt 00:00:39]} 18. Qxb5 {[%clk 00:09:27]} {[%emt 00:00:12]} Nc7 {[%clk
00:07:10]} {[%emt 00:00:34]} 19. Qb3 {[%clk 00:09:14]} {[%emt 00:00:17]} Re6
{[%clk 00:05:58]} {[%emt 00:01:18]} 20. cxd5 {[%clk 00:08:31]} {[%emt
00:00:49]} Ncxd5 {[%clk 00:05:40]} {[%emt 00:00:22]} 21. Nxd5 {[%clk 00:08:05]}
{[%emt 00:00:30]} Nxd5 {[%clk 00:05:38]} {[%emt 00:00:07]} 22. Bc4 {[%clk
00:08:07]} {[%emt 00:00:03]} Rd6 {[%clk 00:05:03]} {[%emt 00:00:41]} 23. a4
{[%clk 00:05:56]} {[%emt 00:02:16]} Rb6 {[%clk 00:04:09]} {[%emt 00:00:59]} 24.
Qa2 {[%clk 00:04:40]} {[%emt 00:01:22]} Nb4 {[%clk 00:03:41]} {[%emt 00:00:33]}
25. Qb1 {[%clk 00:04:43]} {[%emt 00:00:01]} Rc8 {[%clk 00:03:07]} {[%emt
00:00:39]} 26. Rc1 {[%clk 00:03:53]} {[%emt 00:00:54]} Rbc6 {[%clk 00:02:56]}
{[%emt 00:00:17]} 27. Bb5 {[%clk 00:03:36]} {[%emt 00:00:22]} Rc2 {[%clk
00:02:30]} {[%emt 00:00:31]} 28. Rxc2 {[%clk 00:02:33]} {[%emt 00:01:08]} Nxc2
{[%clk 00:02:16]} {[%emt 00:00:19]} 29. Ra2 {[%clk 00:02:34]} {[%emt 00:00:04]}
Bf8 {[%clk 00:02:20]} {[%emt 00:00:01]} 30. Bc1 {[%clk 00:02:16]} {[%emt
00:00:23]} Qc7 {[%clk 00:02:04]} {[%emt 00:00:20]} 31. Bd2 {[%clk 00:02:16]}
{[%emt 00:00:06]} a6 {[%clk 00:01:46]} {[%emt 00:00:24]} 32. Bf1 {[%clk
00:02:09]} {[%emt 00:00:11]} Qc6 {[%clk 00:01:40]} {[%emt 00:00:10]} 33. a5
{[%clk 00:01:48]} {[%emt 00:00:26]} Bd6 {[%clk 00:01:34]} {[%emt 00:00:11]} 34.
Rb2 {[%clk 00:01:44]} {[%emt 00:00:10]} Rc7 {[%clk 00:01:05]} {[%emt 00:00:34]}
35. Rb6 {[%clk 00:01:43]} {[%emt 00:00:06]} Qd7 {[%clk 00:01:01]} {[%emt
00:00:09]} 36. Qb3 {[%clk 00:01:22]} {[%emt 00:00:25]} Na3 {[%clk 00:00:27]}
{[%emt 00:00:39]} 37. Qd5 {[%clk 00:01:03]} {[%emt 00:00:24]} Rc6 {[%clk
00:00:12]} {[%emt 00:00:21]} 38. Qxe4 {[%clk 00:00:48]} {[%emt 00:00:20]} Rxb6
{[%clk 00:00:16]} 39. axb6 {[%clk 00:00:51]} {[%emt 00:00:02]} Nb5 {[%clk
00:00:11]} {[%emt 00:00:09]} 40. Be2 {[%clk 00:00:36]} {[%emt 00:00:20]} Kg7
{[%clk 00:00:09]} {[%emt 00:00:07]} 41. Bf3 {[%clk 00:00:39]} {[%emt 00:00:02]}
1-0

[Event "Elite Hotels Open 2023"]
[Site "Elite Stadshotellet, Kungsgatan 6, Vaxjo, Sweden"]
[Date "2023.02.10"]
[Round "1.17"]
[White "Spang, Magnus"]
[Black "Krantz, Christopher"]
[Result "0-1"]
[TimeControl "15 minutes + 5 seconds per move from move one (Round 1 - 4) / 90 minutes + 30 seconds per move from move one (Round 5 - 8)"]
[WhiteFideId "1755846"]
[BlackFideId "1707876"]
[WhiteElo "1766"]
[BlackElo "2262"]

1. e4 {[%clk 00:15:08]} {[%emt 00:00:02]} g6 {[%clk 00:14:58]} {[%emt
00:00:12]} 2. d4 {[%clk 00:15:11]} {[%emt 00:00:02]} Bg7 {[%clk 00:15:01]}
{[%emt 00:00:01]} 3. Nf3 {[%clk 00:15:15]} {[%emt 00:00:02]} d6 {[%clk
00:15:00]} {[%emt 00:00:06]} 4. Be3 {[%clk 00:15:03]} {[%emt 00:00:18]} Nf6
{[%clk 00:14:11]} {[%emt 00:00:53]} 5. Nbd2 {[%clk 00:15:03]} {[%emt 00:00:05]}
O-O {[%clk 00:14:09]} {[%emt 00:00:06]} 6. h3 {[%clk 00:15:01]} {[%emt
00:00:08]} Nc6 {[%clk 00:13:38]} {[%emt 00:00:35]} 7. c3 {[%clk 00:15:00]}
{[%emt 00:00:07]} e5 {[%clk 00:13:37]} {[%emt 00:00:05]} 8. Qc2 {[%clk
00:14:40]} {[%emt 00:00:25]} Re8 {[%clk 00:13:32]} {[%emt 00:00:09]} 9. Bc4
{[%clk 00:14:32]} {[%emt 00:00:15]} d5 {[%clk 00:12:27]} {[%emt 00:01:10]} 10.
dxe5 {[%clk 00:12:56]} {[%emt 00:01:42]} Nxe5 {[%clk 00:12:08]} {[%emt
00:00:22]} 11. Nxe5 {[%clk 00:12:43]} {[%emt 00:00:18]} Rxe5 {[%clk 00:12:10]}
{[%emt 00:00:04]} 12. O-O-O {[%clk 00:11:21]} {[%emt 00:01:26]} c6 {[%clk
00:10:37]} {[%emt 00:01:38]} 13. Bd4 {[%clk 00:10:29]} {[%emt 00:00:58]} Re8
{[%clk 00:10:32]} {[%emt 00:00:10]} 14. exd5 {[%clk 00:10:01]} {[%emt
00:00:33]} cxd5 {[%clk 00:10:18]} {[%emt 00:00:18]} 15. Bb5 {[%clk 00:09:40]}
{[%emt 00:00:27]} Bd7 {[%clk 00:09:10]} {[%emt 00:01:12]} 16. Qb3 {[%clk
00:09:15]} {[%emt 00:00:31]} a6 {[%clk 00:08:47]} {[%emt 00:00:28]} 17. Bxd7
{[%clk 00:09:19]} {[%emt 00:00:01]} Qxd7 {[%clk 00:08:50]} {[%emt 00:00:02]} 18.
Nf3 {[%clk 00:09:12]} {[%emt 00:00:12]} b5 {[%clk 00:08:40]} {[%emt 00:00:14]}
19. Bxf6 {[%clk 00:08:41]} {[%emt 00:00:37]} Bxf6 {[%clk 00:08:41]} {[%emt
00:00:03]} 20. Qxd5 {[%clk 00:08:33]} {[%emt 00:00:13]} Qa7 {[%clk 00:08:06]}
{[%emt 00:00:40]} 21. Nd4 {[%clk 00:07:39]} {[%emt 00:00:59]} b4 {[%clk
00:06:04]} {[%emt 00:02:07]} 22. Nc6 {[%emt 00:02:10]} Qxf2 {[%clk 00:06:01]}
{[%emt 00:00:06]} 23. Nxb4 {[%clk 00:05:11]} {[%emt 00:00:30]} a5 {[%clk
00:04:39]} {[%emt 00:01:27]} 24. Nd3 {[%clk 00:04:24]} {[%emt 00:00:53]} Qe3+
{[%clk 00:04:39]} {[%emt 00:00:04]} 25. Kb1 {[%clk 00:03:51]} {[%emt 00:00:38]}
Rad8 {[%clk 00:04:21]} {[%emt 00:00:22]} 26. Qf3 {[%clk 00:03:54]} {[%emt
00:00:03]} Qb6 {[%clk 00:04:06]} {[%emt 00:00:19]} 27. Rhf1 {[%clk 00:03:51]}
{[%emt 00:00:08]} Bxc3 {[%clk 00:03:02]} {[%emt 00:01:10]} 28. Qxf7+ {[%clk
00:03:22]} {[%emt 00:00:34]} Kh8 {[%clk 00:03:06]} {[%emt 00:00:01]} 29. Qb3
{[%clk 00:02:50]} {[%emt 00:00:37]} Qxb3 {[%clk 00:02:57]} {[%emt 00:00:14]} 30.
axb3 {[%clk 00:02:54]} {[%emt 00:00:01]} Bd4 {[%clk 00:02:51]} {[%emt
00:00:10]} 31. Nf4 {[%clk 00:02:38]} {[%emt 00:00:22]} Re4 {[%clk 00:02:16]}
{[%emt 00:00:39]} 32. Rde1 {[%clk 00:02:20]} {[%emt 00:00:24]} Be3 {[%clk
00:02:04]} {[%emt 00:00:16]} 33. Ne2 {[%clk 00:02:04]} {[%emt 00:00:23]} Bd2
{[%clk 00:01:57]} {[%emt 00:00:11]} 0-1